Cogmind - Beta 13 @@@ ROGUE MODE // 2024.04.03 @ 13:42:47 Player: lynn Result: Destroyed by G-34 Mercenary with Small Laser Performance ------------- Evolutions (1) 500 Regions Visited (2) 400 Robots Destroyed (6) 30 Value Destroyed (101) 101 Prototype IDs (0) 0 Alien Tech Used (0) 0 Bonus (0) 0 TOTAL SCORE: 1031 Bonus ------- None Cogmind --------- Core Integrity 0/400 Matter 300/300 Energy 100/100 System Corruption 0% Temperature Cool (6) Movement Core (50) Location -9/Materials Parts ------- > --- POWER (3) -------- (None) > --- PROPULSION (2) --- (None) > --- UTILITY (2) ------ (None) > --- WEAPON (2) ------- (None) > --- INVENTORY (5) ---- Aluminum Leg Aluminum Leg Wheel Medium Laser Mining Laser Peak State ------------ > --- POWER ------------ Light Ion Engine > --- PROPULSION ------- Wheel Wheel > --- UTILITY ---------- Heat Sink Large Matter Pod > --- WEAPON ----------- Medium Laser Light Assault Rifle > --- INVENTORY -------- Aluminum Leg Aluminum Leg Wheel Medium Laser Mining Laser [Rating: 7] Favorites ----------- Power Light Ion Engine Engine Light Ion Engine Propulsion Wheel Wheel Wheel Utility Heat Sink Device Heat Sink Storage Large Matter Pod Weapon Medium Laser Energy Gun Medium Laser Ballistic Gun Light Assault Rifle Build | -11 -10 -9 ------- Run | Yrd Mat Mat Slots Evolved 2 | . . 2 Power 2 | . . 2 Propulsion . | . . . Utility . | . . . Weapon . | . . . Parts Attached 7 | 6 1 . Power 1 | 1 . . Engine 1 | 1 . . Core . | . . . Reactor . | . . . Propulsion 2 | 2 . . Treads . | . . . Leg . | . . . Wheel 2 | 2 . . Hover . | . . . Flight . | . . . Utility 2 | 1 1 . Device 1 | 1 . . Storage 1 | . 1 . Processor . | . . . Hackware . | . . . Protection . | . . . Artifact . | . . . Weapon 2 | 2 . . Energy Gun 1 | 1 . . Energy Cannon . | . . . Ballistic Gun 1 | 1 . . Ballistic Cannon . | . . . Launcher . | . . . Special Weapon . | . . . Impact Weapon . | . . . Slashing Weapon . | . . . Piercing Weapon . | . . . Special Melee Weapon . | . . . Unidentified Prototypes . | . . . Parts Lost 7 | . . 7 Power 1 | . . 1 Propulsion 2 | . . 2 Utility 2 | . . 2 Weapon 2 | . . 2 Highest Loss Streak 7 | . . 7 To Critical Strikes . | . . . Average Slot Usage (%) 76 | . 91 71 Engine 10 | . 14 9 Wheel 22 | . 28 20 Device 11 | . 14 10 Storage 9 | . 6 11 Energy Gun 18 | . 16 19 Ballistic Gun 3 | . 12 . Naked Turns 7 | . . 7 Heaviest Build 10 | 7 10 10 Greatest Support 20 | 20 20 10 Greatest Overweight (x) 2 | . . 2 Average Overweight (x) . | . . . Largest Inventory Capacity 5 | 5 5 5 Average Capacity 5 | 5 5 5 Most Carried 5 | 5 5 5 Average Carried 4 | 3 5 5 Final Capacity 5 | 5 5 5 Final Carried 5 | 5 5 5 Class Distribution -------------------- 100% | Mutant Dominant Class ---------------- Mutant | -10/Materials Mutant | -9/Materials Resources | -11 -10 -9 ----------- Run | Yrd Mat Mat Matter Collected 318 | 260 . 58 Remotely . | . . . Salvage Created 169 | 111 . 58 Parts 11 | 6 . 5 Haulers Intercepted . | . . . Recyclers Shooed . | . . . Parts Field Recycled . | . . . Retrieved Matter . | . . . Parts Self-Destructed . | . . . Prevented . | . . . Kills | -11 -10 -9 ------- Run | Yrd Mat Mat Combat Hostiles Destroyed 2 | 1 . 1 Guns 2 | 1 . 1 Classes Destroyed 4 | 3 . 1 Worker 1 | 1 . . Tunneler 3 | 3 . . Grunt 1 | 1 . . Sentry 1 | . . 1 Best Kill Streak 4 | 4 . 1 Combat Bots Only 1 | 1 . 1 Max Kills in Single Turn 1 | 1 . 1 Gunslinging . | . . . Exploded . | . . . Melee . | . . . Uniques/NPCs Destroyed . | . . . Combat | -11 -10 -9 -------- Run | Yrd Mat Mat Hostile Shots Fired 79 | 5 . 74 Missed 22 | 1 . 21 Damage Taken 776 | 45 . 731 Core 420 | 12 . 408 Absorbed by Shields . | . . . Core Remaining (%) 95 | 95 95 . Volleys Fired 13 | 10 . 3 Largest 2 | 2 . 2 Hottest 80 | 70 . 80 Shots Fired 26 | 20 . 6 Gun 26 | 20 . 6 Cannon . | . . . Launcher . | . . . Special . | . . . Kinetic 10 | 10 . . Thermal 16 | 10 . 6 Explosive . | . . . Electromagnetic . | . . . Robot Hit Streak 4 | 4 . 4 Robot Miss Streak 1 | 1 . . Penetration Max . | . . . Secondary Targets . | . . . Shots Hit Robots 15 | 12 . 3 Core Hits 13 | 8 . 5 Critical Kills . | . . . Critical Parts Destroyed . | . . . Critical Strikes 2 | 2 . . Burn 2 | 2 . . Melee Attacks . | . . . Impact . | . . . Slashing . | . . . Piercing . | . . . Sneak Attacks . | . . . Combat Hostiles . | . . . Follow-up Attacks . | . . . Damage Inflicted 229 | 144 . 85 Guns 177 | 144 . 33 Cannons . | . . . Explosions . | . . . Melee . | . . . Ramming 52 | . . 52 Kinetic 46 | 46 . . Thermal 131 | 98 . 33 Explosive . | . . . Electromagnetic . | . . . Impact . | . . . Slashing . | . . . Piercing . | . . . Highest Corruption . | . . . Average Corruption . | . . . Corruption Purged . | . . . Corruption Blocked . | . . . Overload Shots . | . . . Overflow Damage . | . . . Projectiles . | . . . Explosions . | . . . Melee . | . . . Knockbacks . | . . . Impact . | . . . Kinetic . | . . . Secondary . | . . . Self-Inflicted Damage 24 | . . 24 Shots . | . . . Rammed 11 | . . 11 Targets Rammed 11 | . . 11 Kicked . | . . . Crushed . | . . . Highest Temperature 62 | 62 . 11 Average Temperature 26 | 28 . 5 Received Heat Transfer 342 | 24 . 318 Siege Activations . | . . . Robots Corrupted . | . . . Combat Hostiles . | . . . Parts Fried . | . . . Impact Corruptions . | . . . Robots Melted . | . . . Combat Hostiles . | . . . Parts Melted 2 | 2 . . Heat Transferred 555 | 444 . 111 Parts Sabotaged . | . . . Parts Stolen . | . . . Parts Stripped . | . . . Power Chain Reactions . | . . . Alert | -11 -10 -9 ------- Run | Yrd Mat Mat Peak Influence 90 | 40 37 90 Initial 26 | . 26 15 Average 30 | 8 29 52 Maximum Alert Level . | . . . Low Security (%) 100 | 100 100 100 Level 1 . | . . . Level 2 . | . . . Level 3 . | . . . Level 4 . | . . . Level 5 . | . . . High Security . | . . . Max Security . | . . . Squads Dispatched 1 | . . 1 Investigation 1 | . . 1 Extermination . | . . . Reinforcement . | . . . Assault . | . . . Garrison . | . . . Intercept . | . . . Searches Triggered . | . . . Construction Impeded . | . . . Haulers Reinforced . | . . . Active Scanning Responses . | . . . Cargo Convoy Interrupts . | . . . Stealth | -11 -10 -9 --------- Run | Yrd Mat Mat Distress Signals 1 | . . 1 Communications Jammed . | . . . Distress Signals . | . . . Times Spotted 11 | 1 . 10 Peak Tracking Total 9 | 1 . 9 Tactical Retreats . | . . . Traps | -11 -10 -9 ------- Run | Yrd Mat Mat Traps Triggered 1 | . . 1 Indirectly . | . . . Trap Hack Attempts . | . . . Triggered . | . . . Disarmed . | . . . Reprogrammed . | . . . Reused . | . . . Traps Extracted . | . . . Installed . | . . . Triggered . | . . . Machines | -11 -10 -9 ---------- Run | Yrd Mat Mat Machines Disabled . | . . . Max in Single Turn . | . . . Machines Repaired . | . . . Machines Dismantled . | . . . Machines Sabotaged . | . . . Overloaded Fab Kills . | . . . Hacking | -11 -10 -9 --------- Run | Yrd Mat Mat Machines Accessed 2 | . 2 . Terminals 1 | . 1 . Fabricators . | . . . Repair Stations 1 | . 1 . Recycling Units . | . . . Scanalyzers . | . . . Garrison Access . | . . . Total Hacks 9 | . 9 . Successful 6 | . 6 . Failed 3 | . 3 . Catastrophic . | . . . Database Lockouts . | . . . Manual . | . . . Terminals 4 | . 4 . Fabricators . | . . . Repair Stations 5 | . 5 . Recycling Units . | . . . Scanalyzers . | . . . Garrison Access . | . . . Terminal Hacks 2 | . 2 . Record 1 | . 1 . Terminal Index 1 | . 1 . Fabricator Hacks . | . . . Repair Station Hacks 4 | . 4 . Scan Component 2 | . 2 . Repair 1 | . 1 . Refit 1 | . 1 . Recycling Unit Hacks . | . . . Scanalyzer . | . . . Garrison Access Hacks . | . . . Unauthorized Hacks . | . . . Terminals . | . . . Fabricators . | . . . Repair Stations . | . . . Recycling Units . | . . . Scanalyzers . | . . . Garrison Access . | . . . Data Cores Recovered . | . . . Used . | . . . Hacking Detections 1 | . 1 . Full Trace Events . | . . . Feedback Events . | . . . Feedback Blocked . | . . . Robot Schematics Acquired . | . . . Robots Built . | . . . Authchips . | . . . Time . | . . . Total Robot Build Rating . | . . . Part Schematics Acquired . | . . . Parts Built . | . . . Authchips . | . . . Time . | . . . Total Part Build Rating . | . . . Parts Repaired . | . . . Time 26 | . 26 . Parts Recycled . | . . . Recycled Matter . | . . . Retrieved Matter . | . . . Retrieved Components . | . . . Parts Scanalyzed . | . . . Part Schematics Acquired . | . . . Parts Damaged . | . . . Bothacking | -11 -10 -9 ------------ Run | Yrd Mat Mat Used RIF Installer . | . . . Robots Hacked . | . . . Non-combat . | . . . Combat . | . . . Robot Hacks Applied . | . . . Relay Couplers Released . | . . . Fabnet Peak Effective % . | . . . Robots Rewired . | . . . Allies Hacked . | . . . Hacks Repelled . | . . . Allies | -11 -10 -9 -------- Run | Yrd Mat Mat Total Allies . | . . . Largest Group . | . . . Highest-Rated Group . | . . . Highest-Rated Ally . | . . . Total Orders . | . . . Ally Attacks . | . . . Total Damage . | . . . Kills . | . . . Allies Corrupted . | . . . Allies Melted . | . . . Intel | -11 -10 -9 ------- Run | Yrd Mat Mat Robot Analysis Total . | . . . Derelict Logs Recovered . | . . . Drone Launches . | . . . Drone Recoveries . | . . . Exploration | -11 -10 -9 ------------- Run | Yrd Mat Mat Turns Passed 487 | 209 76 202 Spaces Moved 546 | 226 94 226 Core 75 | 55 . 20 Treads . | . . . Legs . | . . . Wheels 471 | 171 94 206 Hover . | . . . Flight . | . . . Fastest Speed 50 | 50 80 50 Average Speed 77 | 72 80 80 Slowest Speed 150 | 80 80 150 Overloaded Moves . | . . . Propulsion Burnouts . | . . . Robots Hopped . | . . . Cave-ins Triggered . | . . . Exploration Rate (%) 11 | 8 18 9 Regions Visited 2 Branch Regions . Pre-discovered Areas . | . . . Known Exits Taken . | . . . Unknown Exits Taken 2 | 1 1 . Scrap Searched . | . . . Spaces Dug . | . . . Terrain Destroyed . | . . . Melee . | . . . Projectile . | . . . AOE . | . . . Terrain Rammed . | . . . Walls Destroyed . | . . . Machines Disabled . | . . . Actions | -11 -10 -9 --------- Run | Yrd Mat Mat Total 585 | 251 94 240 Wait . | . . . Move 544 | 225 93 226 Hop . | . . . Pick Up 10 | 10 . . Fast Attach 2 | 1 1 . Attach 5 | 5 . . Detach . | . . . Swap . | . . . Drop . | . . . Fire 13 | 10 . 3 Melee . | . . . Ram 11 | . . 11 Kick . | . . . Crush . | . . . Escape Stasis . | . . . Rewire . | . . . Trap . | . . . Miscellaneous . | . . . Route ------- -11/Scrapyard -10/Materials -9/Materials History --------- Turn | Location | Event 2 | -11/Scrapyard | Met Revision 17 155 | -11/Scrapyard | Discovered new exit (range 8) 210 | -11/Scrapyard | Entered Materials 281 | -10/Materials | Discovered new exit (range 5) 286 | -10/Materials | Entered another Materials area 286 | -9/Materials | Evolved 2 slots: Power x2 318 | -9/Materials | Build established: Mutant 480 | -9/Materials | Core integrity fell below 50% 484 | -9/Materials | Core integrity fell below 20% 488 | -9/Materials | Destroyed by G-34 Mercenary with Small Laser Last Messages --------------- 00420_ Slammed into A-02 Transporter. 00458_ Med. Laser destroyed. 00464_ Wheel destroyed. Overweight warning: You are carrying more than your current propulsion can efficiently support, which slows movement; see status page ('s') or the top of the parts list for the specific mass vs. support values. 00466_ K-01 Serf cleans the Processing Tank. 00467_ Lgt. Ion Engine destroyed. 00473_ Broken Wheel destroyed. 00475_ Backup Laser I destroyed. 00477_ Critical hit (Burn: +37). 00478_ Slammed into G-34 Mercenary. 00479_ Broken Heat Sink destroyed. 00479_ Slammed into G-34 Mercenary. 00480_ Destabilizing: Core damaged (-20). 00481_ Lrg. Matter Pod destroyed. 00481_ Slammed into G-34 Mercenary. [Achievement: First Step to Greatness] Map ----- +----------------------------------------------------+ | ???????????????????????????????? ??????????????? | | ???????????????????????????????? ??????????????? | | ???????????????????????????????# #?????????????? | | ???????????????????????????????# #?????????????? | | ???????????????????????????????# +?????????????? | | ???????????????????????????????# #?????????????? | | ??????????????????????????????## ##????????????? | | ??????????????????????????????# #????????????? | | ????????????????????????????### #????????????? | | ????????????????????????????? #????????????? | | ??????????????????????????????# #????????????? | | ??????????????????????????????? ?????????????? | | ?????????????????????????????####/#####??????????? | | ?????????????????????????????# #??????????? | | ?????????????????????????????# #??????????? | | ?????????????????????????????# #??????????? | | ?????????????????????????????# """ #??????????? | | ???????????????????###+##????# """ #??????????? | | ???????????????????? #????#"S """ #?????????## | | ????????????????????# #????#""" """ #?????????+ | | ????????????????????# #????# "" """ #?????????# | | ??????????###???????# #????# #???####### | | ?????????? ????## rg##???########/###?# | | ???????????? ??# ########## #?# | | ??????????? """ # gg Y ### | | ??????????? """ + k%@gk k Y | | ????????????"" """ # !g ##### | | ????????????R ??# ########## #???# | | ???????????""" ????###+###????????#######???#! | | ??????????? ???????????????????????????????##!!!! | | ?????????????????????????????????????????????##### | | ?????????????????????????????????????????????????? | | ?????????????????????????????????????????????????? | | ?????????????????????????????????????????????????? | | | | | | | | | | | | | | | | | | | | | | | | | | | | | | | | | +----------------------------------------------------+ Best States ------------- Heat Dissipation 38 Energy Generation 10 Energy Capacity 125 Matter Stores 387 Matter Capacity 450 Sight Range 16 Terrain Scan Density 10 Evasion (%) 50 Item Schematics ----------------- None Robot Schematics ------------------ None Fabricated ------------ Nothing Alien Tech Used ----------------- None Achievements -------------- First Step to Greatness Challenges ------------ None Game ------ Seed HybridLightpackPlating Manual? 0 Play Time 00:12:10 Cumulative 0.1 hours Start 2024.04.03 @ 13:30:41 End 2024.04.03 @ 13:42:47 Sessions 1 Manual Loads 0 Difficulty Rogue Special Mode None Game No. 1 Rogue 1 Adventurer 0 Explorer 0 Win Type - Total 0 Types 0/0/0/0/0/0/0/0/0 Lore% 0 Gallery% 0 Achievement% 0 Wizard Run 0 Options --------- Layout 1 ASCII 0 Keyboard 0 Movement Arrows Keybinds 0 Fullscreen 1 Font 24/Smallcaps Map View 50x35 Zoom Use 0% Tactical HUD 1 Map Filters NONE Filters NONE Steam 1 RUN: bf93495a-85cd-4c3b-9c1a-1efdad4202ee